bitfinex/quotes_BTCUSD_20251226
["timestamp","ask_amount","ask_price","bid_price","bid_amount"]
[1766718511637,8.055e-05,89184.0,89177.0,0.01128]
[1766718512412,0.01121139,89195.0,89177.0,0.01128]
[1766718512413,0.03020979,89200.0,89194.0,0.01121151]
[1766718512661,0.01048891,89199.0,89196.0,0.01121126]
[1766718512822,8.05e-05,89199.0,89196.0,0.01121126]
[1766718513278,0.000549,89196.0,89195.0,0.01128]
[1766718513484,0.000549,89196.0,89188.0,0.01121227]
[1766718513664,0.000549,89196.0,89189.0,0.01128]
[1766718513808,8.05e-05,89199.0,89189.0,0.01128]
[1766718514957,8.05e-05,89199.0,89189.0,0.01037851]
[1766718515374,8.05e-05,89199.0,89184.0,0.01121277]
[1766718515534,8.05e-05,89199.0,89190.0,0.01128]
[1766718515733,0.01121126,89196.0,89190.0,0.00035149]
[1766718516119,0.01121151,89194.0,89191.0,0.01128]
[1766718516281,0.01121164,89193.0,89192.0,0.01128]
[1766718516482,0.01121151,89194.0,89192.0,0.01128]
[1766718516629,0.01121101,89198.0,89180.0,0.01121327]
[1766718516838,0.02465338,89195.0,89181.0,0.01128]
[1766718517671,0.01121164,89193.0,89178.0,0.01121352]
[1766718517869,0.39913996,89190.0,89177.0,0.01121365]
[1766718518074,0.01344199,89181.0,89165.0,0.05609516]
[1766718518271,0.39871469,89180.0,89166.0,0.02249503]
[1766718518472,0.01344199,89195.0,89180.0,0.000549]
[1766718518703,0.01121164,89193.0,89181.0,0.01128]
[1766718518999,0.01344199,89195.0,89181.0,0.01128]
[1766718519201,0.01344199,89195.0,89183.0,0.01121289]
[1766718519608,0.01344199,89195.0,89182.0,0.01121302]
[1766718520224,0.02465338,89195.0,89181.0,0.01128]
[1766718520372,0.01344199,89195.0,89182.0,0.01121302]
[1766718520578,0.01344199,89195.0,89181.0,0.02249315]
[1766718520780,0.02465338,89195.0,89181.0,0.01128]
[1766718521599,0.01128,89190.0,89182.0,0.01128]
[1766718521799,0.01128,89190.0,89176.0,0.01121377]
[1766718522012,0.40999469,89190.0,89177.0,0.01128]
[1766718522329,0.40999469,89190.0,89171.0,0.0112144]
[1766718522330,0.01121239,89187.0,89178.0,0.01128]
[1766718522483,0.01121227,89188.0,89178.0,0.01128]
[1766718522822,0.01121252,89186.0,89178.0,0.01128]
[1766718523024,0.01344199,89180.0,89178.0,0.01128]
[1766718523325,0.01344199,89180.0,89174.0,0.01128]
[1766718523535,0.02465526,89180.0,89174.0,0.01128]
[1766718523708,0.01344199,89180.0,89174.0,0.01128]
[1766718523905,0.02465526,89180.0,89174.0,0.01128]
[1766718524112,0.01344199,89180.0,89174.0,0.01128]
[1766718524510,0.8395,89179.0,89175.0,0.01128]
[1766718524695,0.01128,89178.0,89175.0,0.01128]
[1766718525709,0.01128,89178.0,89166.0,0.01121503]
[1766718525916,0.01128,89178.0,89167.0,0.01128]
[1766718527098,0.01128,89178.0,89168.0,0.01128]
[1766718527699,0.01128,89178.0,89169.0,0.01128]
[1766718528304,0.010181,89178.0,89169.0,0.01128]
[1766718528524,0.010181,89178.0,89169.0,0.01749465]
[1766718528704,0.010181,89178.0,89169.0,0.00628]
[1766718529707,0.010181,89178.0,89169.0,0.00128]
[1766718530508,0.01121377,89176.0,89164.0,0.31577]
[1766718530714,0.02139452,89178.0,89165.0,0.01128]
[1766718530920,0.86089452,89178.0,89164.0,0.31577]
[1766718531146,0.849681,89178.0,89165.0,0.02249516]
[1766718531337,0.86089452,89178.0,89165.0,0.01128]
[1766718531541,0.849681,89178.0,89165.0,0.01128]
[1766718531898,0.86089452,89178.0,89165.0,0.01128]
[1766718532533,0.85071365,89177.0,89165.0,0.01128]
[1766718533337,0.8395,89176.0,89165.0,0.01128]
[1766718533555,0.8395,89176.0,89164.0,0.31577]
[1766718533736,0.8395,89176.0,89166.0,0.01128]
[1766718535852,0.010181,89175.0,89166.0,0.01128]
[1766718536053,0.010181,89175.0,89166.0,0.02249503]
[1766718536272,0.010181,89175.0,89166.0,0.01128]
[1766718536822,0.010181,89175.0,89159.0,0.01121591]
[1766718536823,0.8395,89202.0,89171.0,0.0112144]
[1766718537062,0.0672817,89178.0,89165.0,0.14071]
[1766718537241,0.39871469,89181.0,89166.0,0.01128]
[1766718537242,0.00055,89171.0,89166.0,0.01128]
[1766718537439,0.8395,89177.0,89166.0,0.01121503]
[1766718537687,0.8395,89177.0,89167.0,0.01128]
[1766718537841,0.8395,89177.0,89171.0,0.0112144]
[1766718538025,0.8395,89177.0,89167.0,0.01128]
[1766718538026,0.01344199,89184.0,89175.0,0.0112139]
[1766718538225,0.4100814,89190.0,89176.0,0.01121377]
[1766718538226,0.8395,89188.0,89176.0,0.01121377]
[1766718538420,0.8395,89188.0,89173.0,0.01121415]
[1766718538421,0.3988014,89186.0,89173.0,0.01121415]
[1766718538676,0.3988014,89183.0,89173.0,0.0112947]
[1766718539068,0.3988014,89183.0,89173.0,8.055e-05]
[1766718539278,0.3988014,89183.0,89173.0,0.0112947]
[1766718539775,1.2383014,89183.0,89173.0,8.055e-05]
[1766718539953,1.2383014,89183.0,89174.0,0.01121403]
[1766718540137,1.2383014,89183.0,89175.0,0.01128]
[1766718540845,1.2383014,89183.0,89175.0,0.010731]
[1766718541047,0.8395,89182.0,89176.0,0.00656221]
[1766718541242,0.8395,89182.0,89176.0,0.00601221]
[1766718541448,0.85294199,89181.0,89176.0,2.21e-06]
[1766718542459,0.8395,89179.0,89174.0,0.01128]
[1766718542662,0.8395,89176.0,89162.0,0.01121554]
[1766718542988,0.3988014,89172.0,89164.0,0.01121528]
[1766718543190,0.3988014,89172.0,89163.0,0.02249541]
[1766718543418,0.3988014,89172.0,89163.0,0.01128]
[1766718543597,0.3988014,89172.0,89163.0,0.02249541]
[1766718543770,0.3988014,89172.0,89159.0,0.01121591]
[1766718543771,0.8395,89172.0,89164.0,0.01128]
[1766718543973,0.8395,89172.0,89158.0,0.01121604]
[1766718544179,0.0112139,89175.0,89161.0,0.01121566]
[1766718544180,0.3988014,89170.0,89161.0,0.01121566]
[1766718544382,0.72724745,89169.0,89159.0,0.07857512]
[1766718544548,0.61500155,89169.0,89159.0,0.07857512]
[1766718544754,0.00010758,89176.0,89166.0,0.01121503]
[1766718545041,0.8395,89175.0,89165.0,0.01121516]
[1766718545182,0.8395,89175.0,89167.0,0.01121491]
[1766718545374,0.8395,89175.0,89166.0,0.01095055]
[1766718545587,0.8395,89175.0,89166.0,0.01121503]
[1766718545833,0.8395,89175.0,89167.0,0.01121491]
[1766718546263,0.8395,89175.0,89166.0,0.01121503]
[1766718546673,0.83895,89175.0,89166.0,0.06728978]
[1766718546866,0.83895,89175.0,89166.0,0.01121503]
[1766718547066,0.83895,89175.0,89165.0,3.7e-07]
[1766718547623,0.83895,89175.0,89165.0,0.01121553]
[1766718548034,0.83895,89175.0,89165.0,3.7e-07]
[1766718548274,0.83895,89175.0,89165.0,0.01121553]
[1766718548650,0.83895,89175.0,89166.0,0.01128]
[1766718548861,0.83895,89175.0,89165.0,0.01128037]
[1766718549057,0.83895,89175.0,89165.0,3.7e-07]
[1766718549282,0.83895,89175.0,89165.0,0.01121553]
[1766718550049,0.83895,89175.0,89165.0,0.06729096]
[1766718550267,0.83895,89175.0,89166.0,0.01121503]
[1766718550484,0.83895,89175.0,89170.0,0.01121453]
[1766718550637,0.83895,89175.0,89172.0,0.01121428]
[1766718550839,0.00010758,89176.0,89173.0,0.07856493]
[1766718551173,0.00010758,89176.0,89174.0,0.05607015]
[1766718551524,0.00010758,89176.0,89173.0,0.07856493]
[1766718551718,0.00010758,89176.0,89172.0,0.01121428]
[1766718551719,0.00010758,89176.0,89168.0,0.01121478]
[1766718551862,0.8395,89175.0,89169.0,0.01128]
[1766718552201,0.8395,89168.0,89154.0,0.04484]
[1766718552348,0.83669635,89168.0,89165.0,0.01121516]
[1766718552552,0.01121327,89180.0,89166.0,0.01128]
[1766718552752,0.0112134,89179.0,89166.0,0.01163929]
[1766718552952,0.01115251,89181.0,89166.0,0.01163929]
[1766718553153,0.06721861,89181.0,89166.0,0.01163929]
[1766718553856,0.01121327,89180.0,89166.0,0.02285432]
[1766718554022,0.01121327,89180.0,89166.0,0.01163929]
[1766718554436,0.01344199,89183.0,89167.0,0.87971]
[1766718554580,0.08071976,89183.0,89169.0,0.87971]
[1766718554781,0.01121315,89181.0,89169.0,0.87971]
[1766718555516,0.02465488,89183.0,89169.0,0.87971]
[1766718555938,0.02465488,89183.0,89167.0,0.01121491]
[1766718555939,0.01121365,89177.0,89167.0,0.01128]
[1766718556135,0.01121403,89174.0,89167.0,0.01073]
[1766718556497,0.0112139,89175.0,89167.0,0.01073]
[1766718557040,0.0112139,89175.0,89166.0,0.00035929]
[1766718557041,0.01128,89178.0,89166.0,0.00035929]
[1766718557193,0.01121365,89177.0,89166.0,0.00035929]
[1766718557395,0.02249352,89178.0,89166.0,0.00035929]
[1766718557808,0.01128,89178.0,89166.0,0.00035929]
[1766718558136,0.01128,89178.0,89166.0,0.88006929]
[1766718558334,0.01128,89178.0,89166.0,0.89128432]
[1766718558520,0.010731,89178.0,89169.0,0.87971]
[1766718559443,0.010731,89178.0,89169.0,0.89092465]
[1766718559748,0.010731,89178.0,89169.0,0.87971]
[1766718559955,0.010731,89178.0,89169.0,0.89092465]
[1766718560518,0.010731,89178.0,89169.0,0.87971]
[1766718562051,0.010731,89178.0,89166.0,0.00035929]
[1766718563461,0.010731,89178.0,89171.0,0.0112144]
[1766718563687,0.01344199,89183.0,89166.0,0.01157432]
[1766718563688,0.01344199,89183.0,89172.0,0.87971]
[1766718563809,0.01344199,89183.0,89168.0,0.01121478]
[1766718564027,0.92649199,89183.0,89168.0,0.01121478]
[1766718564577,0.01344199,89183.0,89170.0,0.87971]
[1766718564923,0.01344199,89183.0,89170.0,0.89092453]
[1766718565734,0.01344199,89183.0,89170.0,0.87971]
[1766718566127,0.01344199,89183.0,89170.0,0.89092453]
[1766718566327,0.01344199,89183.0,89170.0,0.87971]
[1766718566957,0.01344199,89183.0,89170.0,0.93578222]
[1766718567163,0.01344199,89183.0,89170.0,0.89092453]
[1766718567361,0.01344199,89183.0,89173.0,0.01121415]
[1766718567562,0.01344199,89183.0,89170.0,0.89092453]
[1766718567961,0.01344199,89183.0,89171.0,0.0112144]
[1766718568807,0.01344199,89183.0,89173.0,0.89092415]
[1766718569364,0.01121239,89187.0,89173.0,0.87971]
[1766718569783,0.01121264,89185.0,89173.0,0.87971]
[1766718569955,0.02249227,89188.0,89173.0,0.87971]
[1766718570180,0.02249227,89188.0,89175.0,0.87971]
[1766718570385,0.01121264,89185.0,89175.0,0.87971]
[1766718570602,0.92426264,89185.0,89169.0,0.01128]
[1766718570921,0.0112134,89179.0,89168.0,0.01128]
[1766718571082,0.91305,89179.0,89169.0,0.01121465]
[1766718571449,0.01344199,89183.0,89170.0,0.01121453]
[1766718572224,0.01344199,89183.0,89169.0,0.87971]
[1766718572387,0.01121302,89182.0,89169.0,0.87971]
[1766718572593,0.02465488,89183.0,89169.0,0.87971]
[1766718572794,0.05607015,89175.0,89169.0,0.87971]
[1766718573006,0.01121327,89180.0,89169.0,0.87971]
[1766718573206,0.01121315,89181.0,89169.0,0.87971]
[1766718573422,0.01121302,89182.0,89169.0,0.87971]
[1766718573652,0.01121315,89181.0,89169.0,0.87971]
[1766718573857,0.02465488,89183.0,89169.0,0.87971]
[1766718574055,0.01344199,89183.0,89169.0,0.89092465]
[1766718575517,0.01344199,89183.0,89169.0,0.87971]
[1766718575723,0.02465488,89183.0,89169.0,0.87971]
[1766718575939,0.01344199,89183.0,89169.0,0.89092465]
[1766718576576,0.01344199,89183.0,89170.0,0.89092453]
[1766718577816,0.07855412,89188.0,89170.0,0.89092453]
[1766718577817,0.02249227,89188.0,89175.0,0.87971]
[1766718578023,0.01344199,89184.0,89175.0,0.87971]
[1766718579276,0.01344199,89184.0,89168.0,0.89099]
[1766718579584,0.01344199,89184.0,89171.0,0.87971]
[1766718579786,0.01344199,89184.0,89131.0,0.44876861]
[1766718579787,0.01121478,89168.0,89150.0,0.94701167]
[1766718579987,0.01121478,89168.0,89153.0,0.01121667]
[1766718579988,0.00035878,89168.0,89153.0,0.01121667]
[1766718580145,0.05607119,89173.0,89151.0,0.0785811]
[1766718580146,1.31187793,89180.0,89165.0,0.01121516]
[1766718580344,0.91305,89180.0,89165.0,0.87981758]
[1766718580545,0.01128,89182.0,89169.0,0.87971]
[1766718581132,0.01121315,89181.0,89169.0,0.87971]
[1766718581532,0.39882793,89180.0,89169.0,0.87971]
[1766718581758,0.01128,89182.0,89169.0,0.87971]
[1766718582514,0.8606834,89179.0,89166.0,0.01128]
[1766718582827,0.01121365,89177.0,89166.0,0.01128]
[1766718583021,0.01121352,89178.0,89166.0,0.01128]
[1766718583227,0.01121365,89177.0,89166.0,0.01128]
[1766718583954,0.01121352,89178.0,89166.0,0.01128]
[1766718584410,0.84947,89179.0,89166.0,0.01128]
[1766718584630,0.22425311,89186.0,89166.0,0.01128]
[1766718584631,0.41003994,89190.0,89171.0,0.0112144]
[1766718584842,0.83907,89188.0,89173.0,0.01121415]
[1766718585055,0.85028227,89188.0,89173.0,0.01121415]
[1766718585260,0.85028227,89188.0,89172.0,0.01121428]
[1766718585407,0.01121239,89187.0,89172.0,0.01121428]
[1766718585626,0.83907,89188.0,89173.0,0.92892455]
[1766718585830,0.85028227,89188.0,89173.0,0.87285415]
[1766718586026,0.83907,89188.0,89174.0,0.01121403]
[1766718586545,0.83907,89188.0,89175.0,0.0112139]
[1766718586748,0.85035,89188.0,89175.0,0.0112139]
[1766718586948,0.85035,89188.0,89174.0,0.01121403]
[1766718587678,0.01128,89188.0,89176.0,0.86164]
[1766718587829,0.01128,89188.0,89180.0,0.86164]
[1766718589419,0.01128,89188.0,89177.0,0.01121365]
[1766718589725,0.83907,89194.0,89181.0,0.01121315]
[1766718589946,0.83907,89194.0,89182.0,0.01121302]
[1766718590369,0.01128,89195.0,89181.0,0.01121315]
[1766718590370,0.01128,89195.0,89190.0,0.01121201]
[1766718590580,0.01344199,89199.0,89188.0,0.01121227]
[1766718591008,0.01344199,89199.0,89190.0,0.01121201]
[1766718591228,0.01344199,89199.0,89189.0,0.01121214]
[1766718591693,0.01344199,89199.0,89190.0,0.01121201]
[1766718592361,0.00026958,89206.0,89195.0,0.01121139]
[1766718592581,0.00026958,89206.0,89197.0,0.01121113]
[1766718592796,0.00026958,89206.0,89198.0,0.01121101]
[1766718593245,0.00026958,89206.0,89197.0,0.01121113]
[1766718593463,0.00026958,89206.0,89193.0,0.86164]
[1766718593681,0.00037722,89206.0,89190.0,0.01121201]
[1766718593902,0.01344199,89199.0,89189.0,0.01128]
[1766718594114,0.01344199,89199.0,89185.0,0.86164]
[1766718594115,0.000549,89190.0,89185.0,0.86164]
[1766718594356,0.000549,89190.0,89180.0,0.01121327]
[1766718594357,0.00055,89189.0,89187.0,0.01128]
[1766718594574,0.00055,89189.0,89165.0,0.86164]
[1766718594575,0.83907,89185.0,89165.0,0.86164]
[1766718594778,0.00055,89189.0,89165.0,0.86164]
[1766718594779,0.85251199,89177.0,89166.0,0.01128]
[1766718594954,0.01344199,89176.0,89166.0,0.01128]
[1766718595163,0.02249277,89184.0,89168.0,0.01121478]
[1766718595164,0.79639411,89178.0,89168.0,0.01121478]
[1766718595314,0.01344199,89178.0,89168.0,0.01121478]
[1766718595520,0.01121302,89182.0,89167.0,0.01121491]
[1766718595744,0.01121315,89181.0,89166.0,0.88413503]
[1766718595924,0.01121302,89182.0,89167.0,0.01121491]
[1766718596139,0.06950659,89183.0,89167.0,0.01121491]
[1766718596140,0.01344199,89183.0,89167.0,0.01121491]
[1766718596359,0.02465488,89183.0,89168.0,0.01121478]
[1766718596558,0.01344199,89183.0,89169.0,0.01121465]
[1766718597372,0.00190507,89183.0,89171.0,0.86164]
[1766718597916,0.83907,89182.0,89169.0,0.01121465]
[1766718598362,0.83907,89182.0,89168.0,0.01121478]
[1766718598564,0.83907,89182.0,89169.0,0.01121465]
[1766718598800,0.83907,89182.0,89171.0,0.0112144]
[1766718598979,0.00190507,89183.0,89173.0,0.01121415]
[1766718599179,0.00190507,89183.0,89174.0,0.01121403]
[1766718599408,0.00190507,89183.0,89171.0,0.86164]
[1766718599798,0.00190507,89183.0,89171.0,0.8728544]
[1766718600213,0.00190507,89183.0,89171.0,0.8841344]
[1766718600967,0.00190507,89183.0,89172.0,0.01121428]
[1766718601186,0.01121139,89195.0,89178.0,0.01121352]
[1766718601392,0.01121139,89195.0,89174.0,0.05606966]
[1766718601393,0.01121025,89204.0,89186.0,0.87285252]
[1766718601543,0.83933958,89206.0,89196.0,0.05605623]
[1766718601755,0.00026958,89206.0,89197.0,0.01121113]
[1766718601951,0.00026958,89206.0,89198.0,0.01121101]
[1766718602153,0.00026958,89206.0,89198.0,0.05605506]
[1766718602364,0.00026958,89206.0,89195.0,0.01121139]
[1766718602524,0.00026958,89206.0,89197.0,0.01121113]
[1766718602721,1.23789793,89220.0,89202.0,0.01121051]
[1766718602922,0.0112085,89218.0,89203.0,0.01121038]
[1766718603132,0.01120862,89217.0,89203.0,0.01121038]
[1766718603342,0.0112085,89218.0,89203.0,0.01121038]
[1766718603972,0.86155837,89219.0,89205.0,0.01121013]
[1766718603973,0.85035,89219.0,89205.0,0.01121013]
[1766718604176,0.85035,89219.0,89203.0,0.01121038]
[1766718604177,0.83907,89219.0,89209.0,0.01120963]
[1766718604828,0.83907,89219.0,89208.0,0.01120975]
[1766718605031,0.83907,89219.0,89207.0,0.01120988]
[1766718605395,0.01344199,89218.0,89210.0,0.0112095]
[1766718605958,0.0004,89223.0,89210.0,0.0112095]
[1766718605959,0.0004,89223.0,89213.0,0.01120912]
[1766718606196,0.83907,89236.0,89220.0,0.06724893]
[1766718606378,0.01128,89235.0,89221.0,0.01120812]
[1766718606852,0.01128,89235.0,89222.0,0.01120799]
[1766718607051,0.83917763,89236.0,89223.0,0.01120787]
[1766718607259,0.83917763,89236.0,89225.0,0.01120762]
[1766718607458,0.83917763,89236.0,89224.0,0.01120774]
[1766718607752,0.0004,89237.0,89227.0,0.86164]
[1766718607975,0.01344199,89235.0,89227.0,0.86119863]
[1766718608174,0.01344199,89235.0,89227.0,0.87247863]
[1766718608406,0.01344199,89235.0,89227.0,0.86119863]
[1766718608619,0.01344199,89235.0,89227.0,0.88368599]
[1766718608826,0.01344199,89235.0,89227.0,0.87247863]
[1766718609175,0.0004,89237.0,89235.0,0.000549]
[1766718609343,0.0004,89237.0,89230.0,0.01120699]
[1766718609744,0.0004,89237.0,89227.0,0.87247863]
[1766718609950,0.0004,89237.0,89227.0,0.88368599]
[1766718610186,0.0004,89237.0,89229.0,0.01120711]
[1766718610394,0.01128,89241.0,89232.0,0.01120674]
[1766718610595,0.01128,89241.0,89233.0,0.01120661]
[1766718610805,0.01128,89241.0,89235.0,0.01120636]
[1766718611039,0.00095,89235.0,89227.0,0.01138763]
[1766718611587,0.01120586,89239.0,89227.0,0.01138763]
[1766718611955,0.01120573,89240.0,89227.0,0.01138763]
[1766718612159,0.01128,89241.0,89227.0,0.01138763]
[1766718612289,0.02248561,89241.0,89227.0,0.02259499]
[1766718612491,0.00781892,89241.0,89229.0,0.01120711]
[1766718612702,0.00781892,89241.0,89230.0,0.01120699]
[1766718612904,0.00781892,89241.0,89231.0,0.01120686]
[1766718613319,0.01120523,89244.0,89230.0,0.01120699]
[1766718613582,0.0112051,89245.0,89231.0,0.01128]
[1766718613786,0.01120498,89246.0,89231.0,0.02248686]
[1766718614262,0.01120498,89246.0,89232.0,0.01120674]
[1766718614476,0.02248485,89247.0,89232.0,0.01120674]
[1766718614821,0.01120498,89246.0,89231.0,0.01128]
[1766718615028,0.01120536,89243.0,89231.0,0.01128]
[1766718615646,0.0112051,89245.0,89231.0,0.01128]
[1766718615851,7.2e-07,89233.0,89231.0,0.01128]
[1766718616054,0.0112051,89245.0,89227.0,0.86174763]
[1766718616055,0.0004,89231.0,89227.0,0.86174763]
[1766718616399,0.77474,89244.0,89230.0,0.01120699]
[1766718616611,0.77474,89244.0,89235.0,0.01120636]
[1766718617204,0.77474,89244.0,89233.0,0.01120661]
[1766718617412,0.84197152,89244.0,89233.0,0.01088]
[1766718617611,0.78594523,89244.0,89233.0,0.01088]
[1766718617813,0.77474,89244.0,89233.0,0.01088]
[1766718618018,0.78594523,89244.0,89233.0,0.01088]
[1766718618216,0.01120536,89243.0,89233.0,0.01088]
[1766718618414,0.78594523,89244.0,89230.0,0.01120699]
[1766718618619,0.78594523,89244.0,89229.0,0.01120711]
[1766718618620,0.78594523,89244.0,89231.0,0.01128]
[1766718619457,0.01120573,89240.0,89231.0,0.01128]
[1766718619651,0.23537849,89247.0,89227.0,0.00010763]
[1766718619652,0.00055,89231.0,89227.0,0.00010763]
[1766718619818,0.77474,89233.0,89217.0,0.01120862]
[1766718620028,0.77474,89233.0,89218.0,0.01128]
[1766718620029,0.77474,89231.0,89218.0,0.01128]
[1766718620228,0.77474,89231.0,89219.0,0.01128]
[1766718620484,0.433,89274.0,89219.0,0.01128]
[1766718620485,0.01041326,89240.0,89225.0,0.83948]
[1766718620627,0.01041326,89240.0,89231.0,0.01120686]
[1766718620831,0.01041326,89240.0,89226.0,0.01128]
[1766718620832,0.01120523,89244.0,89229.0,0.01120711]
[1766718621038,0.77474,89245.0,89232.0,0.01120674]
[1766718621431,0.77474,89245.0,89231.0,0.01120686]
[1766718621638,0.77474,89245.0,89230.0,0.01120699]
[1766718621885,0.7859451,89245.0,89231.0,0.01120686]
[1766718622343,0.77474,89245.0,89231.0,0.01120686]
[1766718622516,0.77474,89245.0,89232.0,0.01120674]
[1766718622736,0.77474,89245.0,89231.0,0.01120686]
[1766718623116,0.77474,89245.0,89232.0,0.01120674]
[1766718623314,0.77474,89245.0,89233.0,0.01120661]
[1766718623530,0.77474,89245.0,89231.0,0.06724119]
[1766718623735,0.77474,89245.0,89231.0,0.01120686]
[1766718623934,0.7859451,89245.0,89230.0,0.01120699]
[1766718624190,0.77474,89245.0,89231.0,0.01120686]
[1766718624513,0.77474,89245.0,89232.0,0.01120674]
[1766718624711,0.77474,89245.0,89234.0,0.01344199]
[1766718626315,0.77474,89245.0,89234.0,0.02472199]
[1766718626474,0.00024368,89241.0,89234.0,0.02472199]
[1766718627798,0.00024368,89241.0,89234.0,0.01128]
[1766718628579,0.01144929,89241.0,89234.0,0.01128]
[1766718628785,0.00055,89234.0,89220.0,0.01120824]
[1766718628984,0.01120724,89228.0,89220.0,0.00010757]
[1766718629190,0.06724458,89227.0,89220.0,0.01138757]
[1766718629408,0.01120749,89226.0,89220.0,0.01138757]
[1766718629588,0.01120749,89226.0,89220.0,0.00010757]
[1766718630227,0.3982838,89230.0,89220.0,0.00010757]
[1766718630377,0.05603559,89229.0,89220.0,0.00010757]
[1766718630574,0.01120724,89228.0,89220.0,0.00010757]
[1766718630777,0.40949079,89230.0,89220.0,0.00010757]
[1766718630978,0.01120686,89231.0,89220.0,0.00010757]
[1766718631184,0.01120711,89229.0,89220.0,0.00010757]
[1766718631536,0.06724079,89232.0,89220.0,0.00010757]
[1766718631715,0.01120736,89227.0,89220.0,0.00010757]
[1766718632483,0.01120749,89226.0,89220.0,0.00010757]
[1766718632683,0.01120724,89228.0,89220.0,0.00010757]
[1766718632884,0.01128,89239.0,89220.0,0.00010757]
[1766718633135,0.01120686,89231.0,89220.0,0.00010757]
[1766718633362,0.01120699,89230.0,89220.0,0.00010757]
[1766718633504,0.01120736,89227.0,89220.0,5.7e-07]
[1766718633706,0.01120724,89228.0,89220.0,5.7e-07]
[1766718633908,0.01120699,89230.0,89220.0,5.7e-07]
[1766718634108,0.3982838,89240.0,89220.0,5.7e-07]
[1766718634109,0.01120548,89242.0,89230.0,0.000656]
[1766718634448,0.01120548,89242.0,89228.0,0.01128]
[1766718634449,0.01144929,89241.0,89228.0,0.01128]
[1766718634864,0.00024368,89241.0,89228.0,0.01128]
[1766718635014,0.00024368,89241.0,89232.0,0.01120674]
[1766718635201,0.00024368,89241.0,89228.0,0.02248724]
[1766718635406,0.00024368,89241.0,89230.0,0.01120699]
[1766718635639,0.00024368,89241.0,89229.0,0.01120711]
[1766718636227,0.00024368,89241.0,89228.0,0.01128]
[1766718636558,0.000443,89228.0,89217.0,0.01120862]
[1766718636800,0.000443,89228.0,89211.0,0.06725578]
[1766718636981,0.3982838,89230.0,89211.0,0.06725578]
[1766718636982,0.22413054,89234.0,89218.0,0.01128]
[1766718637236,0.01120724,89228.0,89218.0,0.01128]
[1766718637391,0.07851712,89237.0,89219.0,0.01120837]
[1766718637617,0.07851712,89237.0,89220.0,0.01120881]
[1766718637618,0.01120623,89236.0,89220.0,0.01120881]
[1766718637767,0.01120636,89235.0,89220.0,0.01120881]
[1766718638123,0.01120623,89236.0,89221.0,0.01120812]
[1766718638361,0.01120623,89236.0,89222.0,0.01120799]
[1766718638538,0.01120674,89232.0,89220.0,5.7e-07]
[1766718638961,0.01120749,89226.0,89220.0,5.7e-07]
[1766718639114,0.01120736,89227.0,89220.0,5.7e-07]
[1766718639538,0.01120749,89226.0,89220.0,5.7e-07]
[1766718639917,0.01120736,89227.0,89220.0,5.7e-07]
[1766718640348,0.01120711,89229.0,89218.0,0.0107605]
[1766718640650,0.01120699,89230.0,89218.0,0.0107605]
[1766718640864,0.01120711,89229.0,89218.0,0.0107605]
[1766718641221,0.01120724,89228.0,89218.0,0.0107605]
[1766718641547,0.01120661,89233.0,89228.0,0.000106]
[1766718641748,0.00010757,89233.0,89228.0,0.000106]
[1766718641949,0.00010757,89233.0,89220.0,0.01120824]
[1766718641950,0.00010757,89233.0,89222.0,0.01120799]
[1766718642390,0.00010757,89233.0,89220.0,0.01120824]
[1766718642558,0.39836,89230.0,89222.0,0.01120799]
[1766718643293,0.00010757,89233.0,89223.0,0.01120787]
[1766718643452,0.00010757,89233.0,89224.0,0.06724646]
[1766718643655,0.00010757,89233.0,89225.0,0.01120762]
[1766718644488,1.57e-06,89233.0,89225.0,0.01120762]
[1766718644688,1.57e-06,89233.0,89224.0,0.01120774]
[1766718645271,1.57e-06,89233.0,89226.0,0.01120749]
[1766718645491,1.57e-06,89233.0,89225.0,0.01120762]
[1766718645871,1.57e-06,89233.0,89226.0,0.01120749]
[1766718646276,1.57e-06,89233.0,89230.0,0.01120699]
[1766718646476,1.57e-06,89233.0,89229.0,0.01120711]
[1766718646681,1.57e-06,89233.0,89231.0,0.05603383]
[1766718646900,1.57e-06,89233.0,89230.0,0.06724153]
[1766718648978,1.57e-06,89233.0,89231.0,0.0560338]
[1766718649396,1.57e-06,89233.0,89226.0,0.01120749]
[1766718649397,0.01120397,89254.0,89235.0,0.06723762]
[1766718649615,0.01120423,89252.0,89240.0,0.39836]
[1766718649800,0.01120448,89250.0,89236.0,0.01128]
[1766718650002,0.01120448,89250.0,89236.0,0.02248623]
[1766718650315,0.01120423,89252.0,89237.0,0.01120611]
[1766718650519,0.01120423,89252.0,89238.0,0.01120598]
[1766718650701,0.01120423,89252.0,89237.0,0.01120611]
[1766718650702,0.01120435,89251.0,89237.0,0.01120611]
[1766718650897,0.01120435,89251.0,89236.0,0.02248623]
[1766718651173,0.0112041,89253.0,89240.0,0.39836]
[1766718651293,0.01120397,89254.0,89239.0,0.01120586]
[1766718651500,0.01120385,89255.0,89240.0,0.01120573]
[1766718651799,0.01120385,89255.0,89241.0,0.01120561]
[1766718652509,0.0112036,89257.0,89241.0,0.01120561]
[1766718652710,0.0672221,89257.0,89240.0,0.40956573]
[1766718652931,0.0672221,89257.0,89227.0,0.22414503]
[1766718652932,0.39836,89250.0,89232.0,0.01120674]
[1766718653135,0.000549,89240.0,89233.0,0.02248661]
[1766718653332,0.01120498,89246.0,89233.0,0.01128]
[1766718653501,0.01120485,89247.0,89233.0,0.02248661]
[1766718653702,0.01120473,89248.0,89234.0,0.01120649]
[1766718654307,0.0112046,89249.0,89234.0,0.01120649]
[1766718654570,0.01120473,89248.0,89234.0,0.01120649]
[1766718655271,0.01120473,89248.0,89235.0,0.01128]
[1766718655448,0.0112046,89249.0,89235.0,0.02248636]
[1766718655824,0.01120435,89251.0,89236.0,0.01120623]
[1766718656228,0.01120435,89251.0,89237.0,0.01120611]
[1766718656840,0.01128,89252.0,89243.0,0.01120536]
[1766718657290,0.01128,89252.0,89242.0,0.01120548]
[1766718657478,0.01120297,89262.0,89244.0,0.05602617]
[1766718657635,0.02248322,89260.0,89245.0,0.0112051]
[1766718658240,0.02248322,89260.0,89246.0,0.01120498]
[1766718658845,0.01128,89260.0,89247.0,0.01120485]
[1766718659072,0.01128,89260.0,89245.0,0.0112051]
[1766718659073,0.02248322,89260.0,89245.0,0.0112051]
[1766718659276,0.02248322,89260.0,89244.0,0.0672314]
[1766718659277,0.01120335,89259.0,89244.0,0.01120523]
[1766718659648,0.01120347,89258.0,89243.0,0.02248536]
[1766718659853,0.0112041,89253.0,89243.0,0.01128]
[1766718660098,0.01120385,89255.0,89243.0,0.01128]
[1766718661013,0.0112036,89257.0,89243.0,0.01128]
[1766718661206,0.0112036,89257.0,89243.0,0.02248536]
[1766718661371,0.0112036,89257.0,89243.0,0.01128]
[1766718661937,0.01120372,89256.0,89243.0,0.01128]